bitfinex-derivatives/quotes_SOLF0:USTF0_20250207
["timestamp","ask_amount","ask_price","bid_price","bid_amount"]
[1738893833649,23.07875149,193.52,193.31,23.07875149]
[1738893833853,23.07875149,193.52,193.35,23.07875149]
[1738893834056,1.5866,193.51,193.45,5.169]
[1738893834253,1.5866,193.51,193.35,23.07875149]
[1738893834454,1.5866,193.51,193.36,0.7699]
[1738893834760,0.03546502,193.45,193.41,0.03610586]
[1738893837666,3.15116502,193.45,193.27,83.56426222]
[1738893837963,5.17,193.42,193.36,5.1714]
[1738893838160,3.1157,193.45,193.27,23.07875149]
[1738893838370,23.07875149,193.43,193.27,23.07875149]
[1738893838756,5.20743508,193.37,193.33,0.03886197]
[1738893838958,1.5153,193.36,193.33,0.03886197]
[1738893839261,1.55461105,193.36,193.33,0.03753593]
[1738893839467,28.25065149,193.34,193.26,5.174]
[1738893839658,28.25065149,193.34,193.25,6.77853031]
[1738893839961,28.25065149,193.34,193.26,5.174]
[1738893840363,1.5153,193.36,193.25,6.77853031]
[1738893840564,0.03891173,193.32,193.3,5.1729]
[1738893840964,1.173e-05,193.32,193.3,5.1729]
[1738893841167,1.173e-05,193.32,193.3,28.25165149]
[1738893842365,1.6706,193.45,193.3,23.07875149]
[1738893842558,1.6706,193.45,193.38,5.1706]
[1738893843467,23.07875149,193.43,193.27,23.14335149]
[1738893843663,23.07875149,193.43,193.27,0.0646]
[1738893843860,0.03367572,193.37,193.33,0.03422594]
[1738893845973,23.11242721,193.37,193.33,0.03422594]
[1738893846174,23.07875149,193.34,193.24,62.57787637]
[1738893846366,1.5137,193.33,193.2,27.93059683]
[1738893846567,23.07875149,193.31,193.2,27.93059683]
[1738893846771,1.5548,193.3,193.2,27.93059683]
[1738893846971,1.5548,193.3,193.2,33.10619683]
[1738893847279,23.07875149,193.28,193.23,0.03777428]
[1738893847467,23.07875149,193.25,193.2,27.93059683]
[1738893847772,23.07875149,193.22,193.2,10.27559683]
[1738893847973,23.07875149,193.22,193.19,56.40551073]
[1738893848274,23.07875149,193.25,193.19,56.40551073]
[1738893848474,4.1,193.26,193.19,56.40551073]
[1738893848671,0.03468423,193.24,193.2,0.03749365]
[1738893848872,8.423e-05,193.24,193.2,0.03749365]
[1738893849075,8.423e-05,193.24,193.22,5.1751]
[1738893850475,8.423e-05,193.24,193.21,1.5266]
[1738893851073,8.423e-05,193.24,193.21,6.7019]
[1738893851474,8.423e-05,193.24,193.21,1.5266]
[1738893852176,8.423e-05,193.24,193.2,0.03749365]
[1738893852874,8.423e-05,193.24,193.22,5.175]
[1738893855372,8.423e-05,193.24,193.21,1.572]
[1738893855576,8.423e-05,193.24,193.2,5.21299365]
[1738893855577,8.423e-05,193.24,193.2,0.03749365]
[1738893857473,8.423e-05,193.24,193.21,5.1754]
[1738893857775,8.423e-05,193.24,193.2,0.03749365]
[1738893857974,5.1749,193.23,193.2,0.03749365]
[1738893858178,23.07875149,193.23,193.13,1.5363]
[1738893858371,1.6162,193.22,193.13,1.5363]
[1738893859080,4.1,193.24,193.13,1.5363]
[1738893859475,0.03526998,193.2,193.19,5.1759]
[1738893859679,0.03526998,193.2,193.17,0.03568724]
[1738893862474,0.03526998,193.2,193.19,5.1759]
[1738893864187,27.17875149,193.35,193.17,23.11443873]
[1738893864480,27.17875149,193.35,193.17,23.07875149]
[1738893864481,5.1725,193.33,193.17,23.07875149]
[1738893864681,27.17875149,193.35,193.24,5.1744]
[1738893864881,23.07875149,193.31,193.17,23.07875149]
[1738893865077,23.07875149,193.31,193.14,3.1616]
[1738893865271,0.03848002,193.26,193.22,0.03773803]
[1738893865877,0.03848002,193.26,193.23,5.1746]
[1738893866080,0.03848002,193.26,193.22,0.03773803]
[1738893866581,0.03848002,193.26,193.25,5.1743]
[1738893868086,0.03848002,193.26,193.22,0.03773803]
[1738893869188,0.03848002,193.26,193.25,5.1743]
[1738893871894,3.2552,193.37,193.31,5.1725]
[1738893872095,3.2552,193.37,193.17,1.6]
[1738893872096,23.07875149,193.4,193.24,23.07875149]
[1738893872300,21.43289691,193.51,193.25,1.6744]
[1738893872301,23.07875149,193.44,193.25,1.6744]
[1738893872495,23.07875149,193.44,193.26,1.6317]
[1738893872695,23.07875149,193.44,193.35,5.1715]
[1738893873001,0.0372803,193.41,193.38,0.03824446]
[1738893873294,23.07875149,193.4,193.26,1.6317]
[1738893873501,5.1717,193.35,193.26,1.6317]
[1738893873696,5.1717,193.35,193.28,5.1733]
[1738893873892,1.633,193.38,193.26,1.6317]
[1738893874295,1.633,193.38,193.34,5.1718]
[1738893874799,0.03299379,193.38,193.34,0.03831346]
[1738893875899,5.1717,193.35,193.34,0.03831346]
[1738893876101,23.07875149,193.37,193.26,6.8057]
[1738893876399,23.07875149,193.37,193.26,1.6317]
[1738893876599,23.07875149,193.37,193.28,5.1733]
[1738893877194,0.03777833,193.34,193.31,0.03925287]
[1738893877899,5.1724,193.33,193.31,0.03925287]
[1738893878603,5.1725,193.32,193.31,0.03925287]
[1738893878904,0.03777833,193.34,193.31,0.03925287]
[1738893879503,5.1722,193.33,193.31,0.03925287]
[1738893880200,23.07875149,193.33,193.21,3.0905]
[1738893881402,0.03331031,193.29,193.25,0.03880948]
[1738893881603,27.15875149,193.37,193.21,3.0905]
[1738893881797,0.03841791,193.29,193.25,0.03296024]
[1738893881994,23.07875149,193.33,193.21,3.0905]
[1738893882198,0.03492155,193.29,193.25,0.03518319]
[1738893883505,5.1741,193.26,193.25,0.03518319]
[1738893883895,24.60035149,193.28,193.13,4.712]
[1738893884098,5.1752,193.22,193.16,5.1767]
[1738893884407,5.1752,193.22,193.13,4.712]
[1738893884606,23.07875149,193.24,193.13,4.712]
[1738893884805,23.07875149,193.24,193.19,5.1758]
[1738893885005,0.03835622,193.2,193.17,0.02310893]
[1738893885403,9.2338,193.27,193.17,0.02310893]
[1738893885709,4.06,193.27,193.17,0.02310893]
[1738893886106,0.03465873,193.24,193.17,0.02310893]
[1738893886807,0.03465873,193.24,193.2,5.1756]
[1738893887213,0.03465873,193.24,193.17,0.02310893]
[1738893888011,23.11341022,193.24,193.17,0.02310893]
[1738893889806,28.28821022,193.24,193.17,0.02310893]
[1738893890110,0.03465873,193.24,193.17,0.02310893]
[1738893893217,5.1755,193.21,193.17,0.02310893]
[1738893894607,28.25385149,193.23,193.17,0.02310893]
[1738893894906,0.03465873,193.24,193.17,0.02310893]
[1738893895113,0.03465873,193.24,193.17,5.19940893]
[1738893895304,0.03465873,193.24,193.17,0.02310893]
[1738893895811,0.03465873,193.24,193.18,5.176]
[1738893896011,0.03465873,193.24,193.17,0.02310893]
[1738893898811,0.03465873,193.24,193.22,5.1749]
[1738893899314,0.03465873,193.24,193.23,5.1749]
[1738893900322,23.07875149,193.4,193.22,23.10186042]
[1738893900509,23.07875149,193.4,193.23,3.2226]
[1738893900710,23.07875149,193.37,193.23,3.2226]
[1738893901312,23.07875149,193.37,193.28,0.03782072]
[1738893901518,0.03639878,193.32,193.28,0.03782072]
[1738893902113,0.03639878,193.32,193.31,5.1727]
[1738893902713,123.89289691,193.51,193.29,23.07875149]
[1738893902906,4.0947422,193.49,193.29,23.07875149]
[1738893903111,3.1445,193.49,193.33,23.07875149]
[1738893903318,23.07875149,193.47,193.34,3.2484]
[1738893903512,23.07875149,193.44,193.34,1.6481]
[1738893903713,23.07875149,193.44,193.27,23.07875149]
[1738893903914,0.03402866,193.41,193.37,0.03765445]
[1738893906315,46.15750298,193.4,193.24,1.6003]
[1738893906513,23.07875149,193.35,193.24,1.6003]
[1738893907218,23.07875149,193.35,193.27,5.1737]
[1738893907413,1.7422,193.39,193.24,1.6003]
[1738893907608,0.03265918,193.31,193.28,0.03453516]
[1738893908120,0.03266637,193.31,193.28,0.03453516]
[1738893909021,0.03266637,193.31,193.3,5.173]
[1738893909417,0.03266637,193.31,193.28,0.03453516]
[1738893912222,0.03266637,193.31,193.3,5.173]
[1738893913821,23.12578268,193.44,193.28,0.03453516]
[1738893914024,23.12578268,193.44,193.36,5.1714]
[1738893914321,1.5184,193.47,193.29,1.5374]
[1738893914523,5.5784,193.47,193.29,1.5374]
[1738893914719,5.1706,193.39,193.29,1.5374]
[1738893915026,0.03510651,193.36,193.32,0.03273145]
[1738893916217,5.1717,193.35,193.32,0.03273145]
[1738893916625,0.03510651,193.36,193.32,0.03273145]
[1738893917326,5.1719,193.35,193.32,0.03273145]
[1738893917521,4.09510651,193.36,193.23,3.1061]
[1738893917825,4.09510651,193.36,193.18,62.5952851]
[1738893917826,5.1733,193.29,193.24,5.1746]
[1738893918021,23.12578268,193.3,193.18,62.5952851]
[1738893918419,23.12578268,193.3,193.16,4.8208]
[1738893918629,23.12578268,193.26,193.16,1.6039]
[1738893918925,5.20776009,193.25,193.21,0.03304697]
[1738893919127,0.03336009,193.25,193.21,0.03304697]
[1738893919522,5.1748,193.24,193.21,0.03304697]
[1738893920023,0.03336009,193.25,193.21,0.03304697]
[1738893920220,5.175,193.23,193.21,0.03304697]
[1738893921225,5.20786009,193.25,193.21,0.03304697]
[1738893921420,0.03336009,193.25,193.21,0.03304697]
[1738893922128,5.20776009,193.25,193.21,0.03304697]
[1738893922321,0.03336009,193.25,193.21,0.03304697]
[1738893923229,5.1762,193.19,193.13,5.1773]
[1738893923423,0.03336009,193.25,193.1,1.6036]
[1738893923623,27.16578268,193.26,193.1,1.6036]
[1738893923624,27.16578268,193.26,193.1,24.72938268]
[1738893924327,23.12578268,193.26,193.17,0.02339994]
[1738893924528,0.03965042,193.2,193.17,0.02339994]
[1738893926027,5.1731,193.3,193.17,0.02339994]
[1738893926227,23.12578268,193.35,193.17,23.12578268]
[1738893926429,23.12578268,193.35,193.18,1.5164]
[1738893926728,6.7929,193.34,193.22,5.1749]
[1738893927025,6.7929,193.34,193.18,1.5164]
[1738893927233,0.03797281,193.3,193.26,5.20796194]
[1738893927431,0.03797281,193.3,193.26,0.03416194]
[1738893927927,6.8498,193.39,193.31,5.1726]
[1738893928119,5.5656,193.41,193.26,23.12578268]
[1738893928120,1.5256,193.41,193.26,23.12578268]
[1738893928325,84.09058629,193.43,193.29,23.12578268]
[1738893928326,56.92480361,193.43,193.29,23.12578268]
[1738893929134,0.03706232,193.37,193.34,0.0341448]
[1738893930528,0.03706232,193.37,193.21,5.6719]
[1738893930529,23.162845,193.37,193.21,1.6319]
[1738893930935,5.1704,193.4,193.31,5.1726]
[1738893931134,5.1704,193.4,193.24,23.12578268]
[1738893931135,27.16578268,193.41,193.24,23.12578268]
[1738893931336,23.12578268,193.38,193.22,1.522]
[1738893931533,5.1723,193.33,193.24,5.1744]
[1738893931739,0.03660784,193.32,193.28,0.03766685]
[1738893931934,0.03660784,193.32,193.23,23.12578268]
[1738893932136,5.171,193.38,193.23,23.12578268]
[1738893932335,0.03283405,193.29,193.28,0.03980082]
[1738893932538,28.29638268,193.4,193.3,5.1727]
[1738893932839,23.12578268,193.4,193.23,23.12578268]
[1738893933037,23.12578268,193.4,193.33,0.03457309]
[1738893933038,0.0329093,193.37,193.33,0.03457309]
[1738893933942,0.0329093,193.37,193.19,1.6298]
[1738893933943,5.1723,193.33,193.25,5.1743]
[1738893934240,23.12578268,193.36,193.19,23.12578268]
[1738893934444,23.12578268,193.4,193.19,23.12578268]
[1738893934634,5.1709,193.38,193.3,5.173]
[1738893935139,0.03762722,193.36,193.32,0.03230528]
[1738893935839,0.03762722,193.36,193.32,5.20480528]
[1738893936141,0.03762722,193.36,193.32,0.03230528]
[1738893936339,0.03762722,193.36,193.34,5.1718]
[1738893936843,0.03762722,193.36,193.32,0.03230528]
[1738893937037,23.12578268,193.44,193.32,0.03230528]
[1738893937342,23.12578268,193.44,193.28,1.6598]
[1738893937544,28.29508268,193.44,193.32,5.1722]
[1738893937744,28.29508268,193.44,193.28,1.6598]
[1738893938238,0.03809856,193.38,193.35,5.1714]
[1738893939139,0.03809856,193.38,193.37,5.1711]
[1738893940040,23.12578268,193.47,193.34,0.03500631]
[1738893940237,125.58578268,193.51,193.34,23.16078899]
[1738893940439,23.12578268,193.51,193.34,23.12578268]
[1738893940643,5.1677,193.5,193.39,5.1706]
[1738893940843,23.12578268,193.51,193.34,23.12578268]
[1738893941346,0.03625279,193.44,193.41,0.03767978]
[1738893941545,23.12578268,193.51,193.41,0.03767978]
[1738893941745,5.1679,193.49,193.42,5.1697]
[1738893941947,0.03513651,193.44,193.42,5.1697]
[1738893942447,23.12578268,193.51,193.45,5.1687]
[1738893942644,23.12578268,193.51,193.41,0.03767978]
[1738893942944,23.12578268,193.51,193.35,1.5201]
[1738893943146,28.29338268,193.51,193.43,5.1693]
[1738893943346,23.12578268,193.51,193.43,5.1693]
[1738893943544,0.03699468,193.49,193.45,0.03739226]
[1738893944944,21.43289691,193.63,193.45,0.03739226]
[1738893945143,0.94975653,193.59,193.45,0.03739226]
[1738893945347,0.94975653,193.59,193.42,3.1016]
[1738893945538,23.12578268,193.56,193.42,3.1016]
[1738893946242,0.03900652,193.51,193.47,0.03476346]
[1738893946845,5.20640652,193.51,193.47,0.03476346]
[1738893947046,0.03900652,193.51,193.47,0.03476346]
[1738893947248,23.12578268,193.5,193.47,0.03476346]
[1738893947552,23.12578268,193.5,193.36,3.185]
[1738893947751,24.78298268,193.5,193.36,3.185]
[1738893948254,23.12578268,193.47,193.36,3.185]
[1738893948857,0.03768808,193.43,193.4,0.03318186]
[1738893949853,23.12578268,193.51,193.4,0.03318186]
[1738893950255,5.1677,193.5,193.44,5.1692]
[1738893950553,23.12578268,193.51,193.44,5.1692]
[1738893950755,23.12578268,193.54,193.36,26.31078268]
[1738893951150,23.12578268,193.54,193.43,0.03765756]
[1738893951151,0.03708746,193.47,193.43,0.03765756]
[1738893951757,4.04,193.57,193.43,0.03765756]
[1738893952057,4.04,193.57,193.39,23.12578268]
[1738893952752,5.1666,193.54,193.44,5.1691]
[1738893952960,0.03777405,193.5,193.46,0.03522734]
[1738893953859,0.03777405,193.5,193.48,5.1682]
[1738893954062,23.12578268,193.64,193.47,23.12578268]
[1738893954262,23.12578268,193.64,193.48,1.532]
[1738893954464,28.28968268,193.64,193.48,1.532]
[1738893954854,5.1639,193.64,193.56,5.166]
[1738893955255,0.03805472,193.62,193.58,0.03555893]
[1738893956360,23.12578268,193.61,193.58,0.03555893]
[1738893956761,5.165,193.6,193.58,0.03555893]
[1738893957467,23.12578268,193.61,193.49,1.5995]
[1738893957668,23.12578268,193.57,193.49,1.5995]
[1738893958367,5.1662,193.56,193.51,5.1674]
[1738893958564,23.12578268,193.57,193.49,1.5995]
[1738893958772,0.03933297,193.55,193.51,0.03925237]
[1738893958969,0.03933297,193.55,193.51,5.20665237]
[1738893959268,0.03933297,193.55,193.51,0.03925237]
[1738893959856,23.12578268,193.53,193.51,0.03925237]
[1738893960364,5.1671,193.52,193.51,0.03925237]
[1738893960763,5.1671,193.52,193.43,1.5898]
[1738893960764,23.12578268,193.53,193.43,1.5898]
[1738893960959,5.1685,193.47,193.4,5.1701]
[1738893961260,5.1685,193.47,193.36,3.2018]
[1738893961456,5.169,193.46,193.36,3.2018]
[1738893961662,23.12578268,193.47,193.36,3.2018]
[1738893962068,5.1699,193.42,193.39,0.03545557]
[1738893962270,0.03640451,193.43,193.39,0.03545557]
[1738893963765,23.12578268,193.41,193.3,3.1738]
[1738893964167,5.1709,193.38,193.3,8.3467]
[1738893964471,23.12578268,193.41,193.3,8.3467]
[1738893964670,5.1711,193.37,193.3,5.173]
[1738893965064,23.12578268,193.41,193.32,0.0351283]
[1738893965268,0.03699306,193.35,193.32,0.0351283]
[1738893965871,5.20879306,193.35,193.32,0.0351283]
[1738893966272,0.03699306,193.35,193.32,0.0351283]
[1738893967073,0.2561,193.48,193.32,0.0351283]
[1738893967271,27.14578268,193.5,193.31,23.12578268]
[1738893967474,0.95015827,193.48,193.31,23.12578268]
[1738893967672,27.14578268,193.5,193.31,23.12578268]
[1738893967870,5.1691,193.45,193.38,5.1708]
[1738893968072,27.14578268,193.5,193.31,23.12578268]
[1738893968270,0.0329683,193.43,193.4,0.03744593]
[1738893968470,0.0329683,193.43,193.42,5.1698]
[1738893968671,23.38188268,193.54,193.4,0.03744593]
[1738893968876,23.12578268,193.5,193.4,0.03744593]
[1738893969070,21.43289691,193.55,193.42,23.12578268]
[1738893969274,44.55867959,193.6,193.42,23.12578268]
[1738893969473,21.43289691,193.6,193.46,23.12578268]
[1738893969775,0.03949549,193.55,193.51,0.0365566]
[1738893976280,0.03949549,193.55,193.51,5.2039566]
[1738893976781,0.03949549,193.55,193.52,5.1671]
[1738893976981,0.03949549,193.55,193.51,0.0365566]
[1738893978077,5.1671,193.52,193.51,0.0365566]
[1738893978985,5.1682,193.48,193.38,1.5788]
[1738893979181,5.1682,193.48,193.42,5.1698]
[1738893979376,4.06,193.53,193.38,1.5788]
[1738893979574,23.12578268,193.49,193.38,1.5788]
[1738893980081,0.03555581,193.45,193.42,0.03360743]
[1738893980477,5.1695,193.43,193.42,0.03360743]
[1738893980683,15.55,193.76,193.42,0.03360743]
[1738893980978,3.405,193.67,193.44,23.12578268]
[1738893981187,32.67139697,193.6,193.44,23.12578268]
[1738893981579,5.1658,193.57,193.5,5.1676]
[1738893981981,0.03623798,193.55,193.52,0.0347914]
[1738893984186,5.20263798,193.55,193.52,0.0347914]
[1738893984385,0.03623798,193.55,193.52,0.0347914]
[1738893984580,0.03623798,193.55,193.42,1.5786]
[1738893984795,0.94975785,193.57,193.42,1.5786]
[1738893985084,5.1668,193.53,193.47,5.1684]
[1738893985789,0.03579608,193.52,193.48,0.03282438]
[1738893985990,5.1674,193.51,193.48,0.03282438]
[1738893986281,5.1674,193.51,193.36,3.1459]
[1738893986282,0.03579608,193.52,193.36,40.63224136]
[1738893986483,37.48634136,193.54,193.36,40.63224136]
[1738893986484,1.6578,193.53,193.36,40.63224136]
[1738893987090,5.1676,193.51,193.36,40.63224136]
[1738893987488,0.03309476,193.45,193.42,0.03699017]
[1738893987689,5.1685,193.47,193.42,0.03699017]
[1738893987894,0.03889591,193.45,193.42,0.03699017]
[1738893988087,1.6578,193.53,193.42,0.03699017]
[1738893988292,0.03934009,193.45,193.42,0.03699017]
[1738893988492,4.08,193.58,193.4,37.48634136]
[1738893988996,4.08,193.58,193.49,5.1678]
[1738893989593,0.03301446,193.55,193.52,0.03276376]
[1738893990899,5.19931446,193.55,193.52,0.03276376]
[1738893992900,5.1667,193.54,193.52,0.03276376]
[1738893993989,0.03301446,193.55,193.52,0.03276376]
[1738893993990,5.1668,193.53,193.52,0.03276376]
[1738893994501,0.03301446,193.55,193.36,1.5393]
[1738893994705,37.48634136,193.51,193.36,1.5393]
[1738893995201,5.1688,193.46,193.36,1.5393]
[1738893995797,0.03652461,193.43,193.39,0.03337792]
[1738893995997,5.169,193.45,193.36,1.5393]
[1738893996199,0.03675855,193.41,193.38,0.0332912]
[1738893996392,0.03675855,193.41,193.39,5.1706]
[1738893996602,0.03675855,193.41,193.38,0.0332912]
[1738893997210,5.1706,193.39,193.38,0.0332912]
[1738893997502,0.03675855,193.41,193.31,5.1726]
[1738893997699,0.03675855,193.41,193.27,3.1392]
[1738893997902,37.48634136,193.39,193.27,3.1392]
[1738893998801,0.03558489,193.35,193.31,0.03856558]
[1738894000504,1.5979,193.45,193.31,0.03856558]
[1738894000903,1.5979,193.45,193.27,40.62554136]
[1738894001404,1.5979,193.45,193.36,5.1714]
[1738894001801,0.03704813,193.42,193.39,0.03382986]
[1738894004001,0.03704813,193.42,193.4,5.1703]
[1738894004401,0.03704813,193.42,193.39,0.03382986]
[1738894004707,4.04,193.53,193.39,0.03382986]
[1738894004907,5.1679,193.5,193.41,5.1698]
[1738894005095,4.04,193.53,193.41,5.1698]
[1738894005295,4.04,193.53,193.35,37.48634136]
[1738894005606,4.04,193.53,193.42,5.1695]
[1738894005806,0.03886541,193.46,193.42,5.20453785]
[1738894006706,0.03886541,193.46,193.44,5.1691]
[1738894007204,0.03886541,193.46,193.42,5.20453785]
[1738894007506,0.03886541,193.46,193.42,0.03503785]
[1738894007703,5.169,193.45,193.42,0.03503785]
[1738894007909,0.03886541,193.46,193.42,0.03503785]
[1738894008501,5.20766541,193.46,193.42,0.03503785]
[1738894008708,0.03886541,193.46,193.42,0.03503785]
[1738894009104,5.1695,193.43,193.42,0.03503785]
[1738894011402,0.03886541,193.46,193.42,0.03503785]
[1738894011601,0.03886541,193.46,193.43,5.1695]
[1738894012007,0.03886541,193.46,193.42,0.03503785]
[1738894012803,0.03886541,193.46,193.42,5.20483785]
[1738894013206,0.03886541,193.46,193.42,0.03503785]
[1738894013408,5.1695,193.43,193.42,0.03503785]
[1738894014604,5.1695,193.43,193.32,1.5928]
[1738894014605,5.1703,193.41,193.32,1.5928]
[1738894014908,23.0939994,193.48,193.32,1.5928]
[1738894015112,5.1697,193.43,193.37,5.1709]
[1738894015409,23.0939994,193.48,193.37,5.1709]
[1738894015604,5.1704,193.4,193.35,5.1717]
[1738894015809,23.13124089,193.44,193.41,0.03952333]
[1738894016010,1.5335,193.43,193.34,0.03558986]
[1738894016206,5.1702,193.41,193.34,5.1717]
[1738894016409,1.5335,193.43,193.37,0.03910683]
[1738894016611,0.03566756,193.39,193.37,0.03910683]
[1738894016919,5.20626756,193.39,193.37,0.03910683]
[1738894017106,0.03566756,193.39,193.37,0.03910683]
[1738894018108,5.20646756,193.39,193.37,0.03910683]
[1738894018310,0.03566756,193.39,193.37,0.03910683]
[1738894022030,5.1709,193.38,193.37,0.03910683]
[1738894022935,0.03566756,193.39,193.24,23.0939994]
[1738894023234,4.02,193.41,193.25,1.6551]
[1738894023425,4.02,193.46,193.31,23.0939994]
[1738894023627,4.02,193.46,193.28,24.7475994]
[1738894024031,5.1711,193.37,193.28,24.7475994]
[1738894024230,5.1711,193.37,193.35,0.03345444]
[1738894024429,5.1711,193.37,193.31,5.1725]
[1738894024629,5.1714,193.36,193.34,0.03294554]
[1738894024826,0.03814169,193.38,193.34,0.03294554]
[1738894025835,0.03814169,193.38,193.34,5.20484554]
[1738894027131,5.1714,193.37,193.34,0.03294554]
[1738894027338,0.03814169,193.38,193.34,0.03294554]
[1738894028239,5.1717,193.35,193.34,0.03294554]
[1738894028434,23.0939994,193.35,193.23,3.1641]
[1738894028829,5.1735,193.29,193.23,8.3387]
[1738894029026,23.0939994,193.35,193.23,3.1641]
[1738894029539,0.03908374,193.31,193.27,0.03448086]
[1738894030142,0.03908374,193.31,193.29,5.1731]
[1738894030341,0.03908374,193.31,193.27,0.03448086]
[1738894030935,0.03908374,193.31,193.29,5.1732]
[1738894031340,0.03908374,193.31,193.27,0.03448086]
[1738894031538,0.03908374,193.31,193.3,5.173]
[1738894031737,21.43289691,193.43,193.3,23.0939994]
[1738894032140,26.60269691,193.43,193.36,5.1713]
[1738894032843,0.03806395,193.41,193.38,0.03371345]
[1738894033947,0.03806395,193.41,193.4,5.1703]
[1738894034146,0.03806395,193.41,193.38,0.03371345]
[1738894035452,23.0939994,193.51,193.38,0.03371345]
[1738894035650,27.1139994,193.51,193.35,3.331]
[1738894035849,5.168,193.49,193.42,5.1697]
[1738894036040,5.168,193.49,193.35,3.331]
[1738894036846,0.03393553,193.44,193.4,0.03598891]
[1738894037252,5.1671,193.53,193.4,0.03598891]
[1738894037645,5.1671,193.53,193.38,23.0939994]
[1738894038444,0.037588,193.47,193.44,0.03630019]
[1738894038645,24.6282994,193.59,193.44,0.03630019]
[1738894038844,24.6282994,193.59,193.42,23.0939994]
[1738894039045,5.1661,193.56,193.49,5.1678]
[1738894039250,24.6282994,193.59,193.39,23.0939994]
[1738894039750,0.03305271,193.51,193.47,5.20479018]
[1738894039951,24.6282994,193.59,193.39,23.0939994]
[1738894040249,0.03778385,193.51,193.47,0.03448322]
[1738894040449,24.6282994,193.59,193.42,23.0939994]
[1738894040639,0.03567264,193.51,193.47,0.03684371]
[1738894040839,24.6282994,193.59,193.42,23.0939994]
[1738894041043,0.03899996,193.51,193.47,0.03573533]
[1738894041244,24.6282994,193.59,193.42,23.0939994]
[1738894041450,0.03442083,193.51,193.47,0.03495879]
[1738894041645,24.6282994,193.59,193.42,23.0939994]
[1738894041850,0.03790219,193.51,193.48,5.1682]
[1738894042151,24.6282994,193.59,193.42,23.0939994]
[1738894042352,0.0382168,193.51,193.48,0.03600217]
[1738894042649,5.1671,193.53,193.48,0.03600217]
[1738894042850,0.0398147,193.51,193.48,0.03600217]
[1738894044552,5.2072147,193.51,193.48,0.03600217]
[1738894044852,23.1338141,193.51,193.48,0.03600217]
[1738894045452,5.1679,193.49,193.48,0.03600217]
[1738894045654,23.1338141,193.51,193.48,0.03600217]
[1738894045948,0.0398147,193.51,193.48,0.03600217]
[1738894046748,0.0398147,193.51,193.49,5.1679]
[1738894047352,0.0398147,193.51,193.48,5.20410217]
[1738894047656,0.0398147,193.51,193.48,0.03600217]
[1738894047955,5.1677,193.5,193.48,0.03600217]
[1738894048248,0.0398147,193.51,193.48,0.03600217]
[1738894048653,23.0939994,193.49,193.36,1.6071]
[1738894049451,5.1693,193.44,193.39,5.1706]
[1738894049648,24.7438994,193.49,193.36,1.6071]
[1738894049852,5.1698,193.42,193.4,0.0347787]
[1738894050048,0.03506906,193.43,193.4,0.0347787]
[1738894050254,0.03506906,193.43,193.31,1.5428]
[1738894050255,23.0939994,193.42,193.31,1.5428]
[1738894051061,5.1709,193.39,193.33,5.172]
[1738894051458,0.03693475,193.38,193.34,0.03824864]
[1738894052059,0.03693475,193.38,193.22,23.0939994]
[1738894052359,23.0939994,193.39,193.22,23.0939994]
[1738894052859,4.02,193.4,193.26,23.0939994]
[1738894053055,4.02,193.4,193.32,5.1723]
[1738894053454,0.03838241,193.35,193.32,5.1723]
[1738894053853,0.03838241,193.35,193.31,0.03518878]
[1738894054854,0.03838241,193.35,193.31,4.67528878]
[1738894055055,5.1694,193.44,193.31,4.67528878]
[1738894055261,4.02,193.47,193.31,4.6401]
[1738894055656,4.02,193.47,193.34,5.1719]
[1738894056156,0.03710742,193.42,193.39,0.03575801]
[1738894056961,5.20690742,193.42,193.39,0.03575801]
[1738894057362,5.1703,193.4,193.39,0.03575801]
[1738894058867,5.1714,193.37,193.31,4.6401]
[1738894059763,5.1714,193.37,193.32,5.1725]
[1738894060069,5.207936,193.36,193.32,0.03485764]
[1738894060265,23.0939994,193.38,193.22,23.0939994]
[1738894060564,0.03941116,193.36,193.32,0.03318806]
[1738894060870,0.03704061,193.36,193.32,0.03462166]
[1738894062467,0.03704061,193.36,193.33,5.1721]
[1738894062664,0.03704061,193.36,193.32,0.03462166]
[1738894063976,24.7438994,193.49,193.34,23.0939994]
[1738894064270,1.6499,193.49,193.35,3.1642]
[1738894064673,1.6499,193.49,193.42,5.1698]
[1738894065059,23.0939994,193.53,193.44,0.03956019]
[1738894065060,0.03367209,193.47,193.44,0.03956019]
[1738894065261,0.03367209,193.47,193.39,23.0939994]
[1738894065466,0.03367209,193.47,193.44,0.03656584]
[1738894065671,0.0361663,193.45,193.44,5.20586584]
[1738894065873,6.7474,193.54,193.44,0.03656584]
[1738894066873,6.7474,193.54,193.47,5.1684]